fUST/lending_fUST_20250129
["ID","MTS","AMOUNT","RATE_DAILY","PERIOD"]
[350762608,1738111841165,-1609.3,0.0001726,2]
[350762609,1738111841178,-161.65,0.0001726,2]
[350762610,1738111841190,-500.0,0.0001726,2]
[350762611,1738111841201,-2206.11,0.0001726,2]
[350762612,1738111841212,-6619.11,0.0001726,2]
[350762613,1738111841224,-621.27,0.0001726,2]
[350762614,1738111841236,-500.0,0.0001726,2]
[350762615,1738111841251,-500.0,0.0001726,2]
[350762616,1738111841265,-500.0,0.0001726,2]
[350762617,1738111841279,-500.0,0.0001726,2]
[350762618,1738111841290,-283.94,0.0001726,2]
[350762619,1738111841302,-593.38,0.0001726,2]
[350762620,1738111841315,-1104.98,0.0001726,2]
[350762621,1738111841332,-500.0,0.0001726,2]
[350762622,1738111841345,-500.0,0.0001726,2]
[350762623,1738111841359,-582.25,0.0001726,2]
[350762624,1738111841372,-500.0,0.0001726,2]
[350762625,1738111841384,-781.13,0.0001726,2]
[350762626,1738111841396,-2027.4,0.0001726,2]
[350762627,1738111841409,-556.3,0.0001726,2]
[350762628,1738111841422,-500.0,0.0001726,2]
[350762629,1738111841435,-500.0,0.0001726,2]
[350762630,1738111841448,-500.0,0.0001726,2]
[350762631,1738111841461,-566.24,0.0001726,2]
[350762632,1738111841474,-912.02,0.0001726,2]
[350762633,1738111841487,-1309.93,0.0001726,2]
[350762634,1738111841500,-158.5,0.00017395,3]
[350762635,1738111841513,-3063.63,0.00017396,2]
[350762636,1738111841526,-601.93,0.00017397,2]
[350762637,1738111841539,-1609.3,0.00017397,2]
[350762638,1738111841551,-500.0,0.00017397,2]
[350762639,1738111841565,-2206.11,0.00017397,2]
[350762640,1738111841577,-2764.95170974,0.00017397,2]
[350762641,1738111841596,-3854.15829026,0.00017397,2]
[350762642,1738111841608,-621.27,0.00017397,2]
[350762643,1738111841620,-500.0,0.00017397,2]
[350762644,1738111841632,-162.72170316,0.00017397,2]
[350762645,1738111841644,-500.0,0.00017397,2]
[350762646,1738111841657,-500.0,0.00017397,2]
[350762647,1738111841669,-593.38,0.00017397,2]
[350762648,1738111841681,-713.85618748,0.00017397,2]
[350762649,1738111841696,-391.12381252,0.00017397,2]
[350762650,1738111841708,-500.0,0.00017397,2]
[350762651,1738111841720,-299.78834383,0.00017397,2]
[350762652,1738111841732,-582.25,0.00017397,2]
[350762653,1738111841744,-500.0,0.00017397,2]
[350762654,1738111841757,-781.13,0.00017397,2]
[350762655,1738111841772,-2027.4,0.00017397,2]
[350762656,1738111841795,-556.3,0.00017397,2]
[350762657,1738111841807,-500.0,0.00017397,2]
[350762658,1738111841819,-500.0,0.00017397,2]
[350762659,1738111841830,-500.0,0.00017397,2]
[350762660,1738111841842,-912.02,0.00017397,2]
[350762661,1738111841855,-1309.93,0.00017397,2]
[350762662,1738111841867,-1961.79438301,0.00017533,2]
[350762663,1738111841882,-1101.83561699,0.00017533,2]
[350762664,1738111841894,-774.04,0.00017534,2]
[350762665,1738111841906,-601.93,0.00017534,2]
[350762666,1738111841918,-1609.3,0.00017534,2]
[350762667,1738111841931,-500.0,0.00017534,2]
[350762668,1738111841943,-2206.11,0.00017534,2]
[350762669,1738111841955,-5253.24843154,0.00017534,2]
[350762670,1738111841971,-794.77426682,0.00017534,2]
[350762671,1738111841987,-571.08730164,0.00017534,2]
[350762672,1738111841999,-621.27,0.00017534,2]
[350762673,1738111842012,-500.0,0.00017534,2]
[350762674,1738111842024,-500.0,0.00017534,2]
[350762675,1738111842036,-500.0,0.00017534,2]
[350762676,1738111842189,-593.38,0.00017534,2]
[350762677,1738111842211,-1104.98,0.00017534,2]
[350762678,1738111842226,-500.0,0.00017534,2]
[350762679,1738111842237,-582.25,0.00017534,2]
[350762680,1738111842248,-500.0,0.00017534,2]
[350762681,1738111842260,-781.13,0.00017534,2]
[350762682,1738111842271,-2027.4,0.00017534,2]
[350762683,1738111842281,-556.3,0.00017534,2]
[350762684,1738111842292,-500.0,0.00017534,2]
[350762685,1738111842303,-500.0,0.00017534,2]
[350762686,1738111842313,-500.0,0.00017534,2]
[350762687,1738111842326,-912.02,0.00017534,2]
[350762688,1738111842337,-1309.93,0.00017534,2]
[350762689,1738111842348,-1000.0,0.00017539,2]
[350762690,1738111842359,-600.0,0.00017564,2]
[350762691,1738111842370,-404.13517671,0.00017571,2]
[350762692,1738111842379,-300.0,0.000176,7]
[350762693,1738111842390,-601.93,0.00017671,2]
[350762694,1738111842400,-1609.3,0.00017671,2]
[350762695,1738111842412,-352.87934153,0.00017671,2]
[350762697,1738111842499,-147.12065847,0.00017671,2]
[350762698,1738111842510,-363.62759218,0.00017671,2]
[350762699,1738111842527,-1842.48240782,0.00017671,2]
[350762700,1738111842538,-6619.11,0.00017671,2]
[350762701,1738111842549,-621.27,0.00017671,2]
[350762703,1738111842560,-500.0,0.00017671,2]
[350762704,1738111842571,-500.0,0.00017671,2]
[350762705,1738111842582,-500.0,0.00017671,2]
[350762706,1738111842592,-593.38,0.00017671,2]
[350762707,1738111842604,-1104.98,0.00017671,2]
[350762708,1738111842615,-500.0,0.00017671,2]
[350762710,1738111842626,-582.25,0.00017671,2]
[350762711,1738111842635,-500.0,0.00017671,2]
[350762712,1738111842645,-781.13,0.00017671,2]
[350762713,1738111842656,-2027.4,0.00017671,2]
[350762714,1738111842666,-556.3,0.00017671,2]
[350762715,1738111842676,-500.0,0.00017671,2]
[350762716,1738111842686,-500.0,0.00017671,2]
[350762718,1738111842697,-500.0,0.00017671,2]
[350762719,1738111842707,-912.02,0.00017671,2]
[350762721,1738111842717,-1309.93,0.00017671,2]
[350762722,1738111842727,-3063.63,0.00017699,2]
[350762723,1738111842737,-1460.45,0.000177,2]
[350762724,1738111842747,-158.5,0.00017759,3]
[350762725,1738111842758,-601.93,0.00017808,2]
[350762726,1738111842768,-1609.3,0.00017808,2]
[350762727,1738111842779,-500.0,0.00017808,2]
[350762728,1738111842790,-2206.11,0.00017808,2]
[350762729,1738111842800,-6619.11,0.00017808,2]
[350762730,1738111842811,-621.27,0.00017808,2]
[350762731,1738111842821,-500.0,0.00017808,2]
[350762732,1738111842831,-500.0,0.00017808,2]
[350762733,1738111842841,-593.38,0.00017808,2]
[350762734,1738111842852,-1104.98,0.00017808,2]
[350762735,1738111842862,-500.0,0.00017808,2]
[350762736,1738111842872,-582.25,0.00017808,2]
[350762737,1738111842882,-500.0,0.00017808,2]
[350762738,1738111842892,-781.13,0.00017808,2]
[350762739,1738111842902,-2027.4,0.00017808,2]
[350762740,1738111842912,-556.3,0.00017808,2]
[350762741,1738111842922,-500.0,0.00017808,2]
[350762742,1738111842932,-500.0,0.00017808,2]
[350762743,1738111842942,-500.0,0.00017808,2]
[350762744,1738111842951,-912.02,0.00017808,2]
[350762745,1738111842961,-1309.93,0.00017808,2]
[350762746,1738111842972,-306.0,0.0001788,2]
[350762747,1738111842982,-3063.63,0.00017944,2]
[350762748,1738111842992,-601.93,0.00017945,2]
[350762749,1738111843002,-1609.3,0.00017945,2]
[350762750,1738111843013,-500.0,0.00017945,2]
[350762751,1738111843023,-2206.11,0.00017945,2]
[350762752,1738111843033,-6619.11,0.00017945,2]
[350762753,1738111843043,-621.27,0.00017945,2]
[350762754,1738111843053,-500.0,0.00017945,2]
[350762755,1738111843063,-500.0,0.00017945,2]
[350762756,1738111843074,-593.38,0.00017945,2]
[350762757,1738111843084,-1104.98,0.00017945,2]
[350762758,1738111843094,-500.0,0.00017945,2]
[350762759,1738111843104,-582.25,0.00017945,2]
[350762760,1738111843114,-500.0,0.00017945,2]
[350762761,1738111843123,-781.13,0.00017945,2]
[350762762,1738111843134,-2027.4,0.00017945,2]
[350762763,1738111843143,-556.3,0.00017945,2]
[350762764,1738111843153,-500.0,0.00017945,2]
[350762765,1738111843162,-500.0,0.00017945,2]
[350762766,1738111843172,-500.0,0.00017945,2]
[350762767,1738111843182,-912.02,0.00017945,2]
[350762768,1738111843192,-1309.93,0.00017945,2]
[350762769,1738111843202,-420.0,0.00017962,2]
[350762770,1738111843217,-3063.63,0.00018081,2]
[350762771,1738111843227,-601.93,0.00018082,2]
[350762772,1738111843237,-1609.3,0.00018082,2]
[350762773,1738111843248,-500.0,0.00018082,2]
[350762774,1738111843258,-2206.11,0.00018082,2]
[350762775,1738111843269,-6619.11,0.00018082,2]
[350762776,1738111843279,-621.27,0.00018082,2]
[350762777,1738111843289,-322.99,0.00018082,2]
[350762778,1738111843299,-500.0,0.00018082,2]
[350762779,1738111843309,-593.38,0.00018082,2]
[350762780,1738111843329,-1104.98,0.00018082,2]
[350762781,1738111843348,-500.0,0.00018082,2]
[350762782,1738111843357,-582.25,0.00018082,2]
[350762783,1738111843367,-465.43,0.00018082,2]
[350762784,1738111843377,-781.13,0.00018082,2]
[350762785,1738111843387,-2027.4,0.00018082,2]
[350762786,1738111843397,-556.3,0.00018082,2]
[350762787,1738111843407,-500.0,0.00018082,2]
[350762788,1738111843417,-500.0,0.00018082,2]
[350762789,1738111843426,-500.0,0.00018082,2]
[350762790,1738111843436,-912.02,0.00018082,2]
[350762791,1738111843445,-1309.93,0.00018082,2]
[350762792,1738111843455,-150.0,0.00018093,2]
[350762793,1738111843465,-2043.0,0.00018093,2]
[350762794,1738111843484,-537.0,0.00018093,2]
[350762795,1738111843501,-2303.0,0.00018093,2]
[350762796,1738111843511,-150.0,0.00018093,2]
[350762797,1738111843521,-395.0,0.00018093,2]
[350762798,1738111843531,-621.0,0.000181,2]
[350762799,1738111843540,-158.5,0.00018122,4]
[350762800,1738111843551,-3063.63,0.00018218,2]
[350762801,1738111843560,-601.93,0.00018219,2]
[350762802,1738111843571,-1609.3,0.00018219,2]
[350762803,1738111843582,-500.0,0.00018219,2]
[350762804,1738111843592,-2206.11,0.00018219,2]
[350762805,1738111843602,-6619.11,0.00018219,2]
[350762806,1738111843612,-621.27,0.00018219,2]
[350762807,1738111843622,-500.0,0.00018219,2]
[350762808,1738111843632,-593.38,0.00018219,2]
[350762809,1738111843642,-1104.98,0.00018219,2]
[350762810,1738111843653,-351.83,0.00018219,2]
[350762811,1738111843663,-582.25,0.00018219,2]
[350762812,1738111843673,-781.13,0.00018219,2]
[350762813,1738111843683,-2027.4,0.00018219,2]
[350762814,1738111843692,-556.3,0.00018219,2]
[350762815,1738111843702,-476.56,0.00018219,2]
[350762816,1738111843712,-500.0,0.00018219,2]
[350762817,1738111843722,-500.0,0.00018219,2]
[350762818,1738111843732,-912.02,0.00018219,2]
[350762819,1738111843743,-1309.93,0.00018219,2]
[350762820,1738111843754,-3063.63,0.00018355,2]
[350762821,1738111843763,-601.93,0.00018356,2]
[350762822,1738111843774,-1609.3,0.00018356,2]
[350762823,1738111843784,-500.0,0.00018356,2]
[350762824,1738111843794,-2206.11,0.00018356,2]
[350762825,1738111843805,-6619.11,0.00018356,2]
[350762826,1738111843815,-621.27,0.00018356,2]
[350762827,1738111843824,-500.0,0.00018356,2]
[350762828,1738111843834,-593.38,0.00018356,2]
[350762829,1738111843844,-1104.98,0.00018356,2]
[350762830,1738111843854,-582.25,0.00018356,2]
[350762831,1738111843864,-781.13,0.00018356,2]
[350762832,1738111843874,-2027.4,0.00018356,2]
[350762833,1738111843885,-556.3,0.00018356,2]
[350762834,1738111843895,-500.0,0.00018356,2]
[350762835,1738111843905,-500.0,0.00018356,2]
[350762836,1738111843915,-912.02,0.00018356,2]
[350762837,1738111843925,-1309.93,0.00018356,2]
[350762838,1738111843934,-153.0,0.00018472,2]
[350762839,1738111843944,-153.0,0.00018474,2]
[350762840,1738111843953,-13245.59911628,0.00018482,2]
[350762841,1738111843964,-158.5,0.00018486,4]
[350762842,1738111843975,-601.93,0.00018493,2]
[350762843,1738111843985,-1609.3,0.00018493,2]
[350762844,1738111843996,-500.0,0.00018493,2]
[350762845,1738111844007,-2206.11,0.00018493,2]
[350762846,1738111844016,-6619.11,0.00018493,2]
[350762847,1738111844027,-621.27,0.00018493,2]
[350762848,1738111844038,-500.0,0.00018493,2]
[350762849,1738111844047,-593.38,0.00018493,2]
[350762850,1738111844057,-1104.98,0.00018493,2]
[350762851,1738111844069,-395.3548959,0.00018493,2]
[350762854,1738111844939,-510.36657055,0.00016438,2]
[350762855,1738111844950,-186.8951041,0.00018493,2]
[350762856,1738111844959,-781.13,0.00018493,2]
[350762857,1738111844970,-721.60832535,0.00018493,2]
[350762858,1738111844994,-1305.79167465,0.00018493,2]
[350762859,1738111845004,-556.3,0.00018493,2]
[350762860,1738111845014,-257.56203393,0.00018493,2]
[350762861,1738111845023,-500.0,0.00018493,2]
[350762862,1738111845034,-912.02,0.00018493,2]
[350762863,1738111845043,-240.70503365,0.00018493,2]
[350762874,1738111846399,-1069.22496635,0.00018493,2]
[350762875,1738111846410,-3063.63,0.00018523,2]
[350762876,1738111846421,-1500.0,0.00018541,2]
[350762877,1738111846432,-157.07,0.000186,2]
[350762878,1738111846442,-3063.63,0.00018629,2]
[350762879,1738111846452,-237.48127786,0.0001863,2]
[350762880,1738111846462,-601.93,0.0001863,2]
[350762881,1738111846471,-1609.3,0.0001863,2]
[350762882,1738111846481,-500.0,0.0001863,2]
[350762883,1738111846491,-2206.11,0.0001863,2]
[350762884,1738111846502,-6619.11,0.0001863,2]
[350762885,1738111846512,-621.27,0.0001863,2]
[350762886,1738111846522,-361.9405199,0.0001863,2]
[350762887,1738111846531,-593.38,0.0001863,2]
[350762888,1738111846541,-1104.98,0.0001863,2]
[350762889,1738111846551,-582.25,0.0001863,2]
[350762890,1738111846560,-781.13,0.0001863,2]
[350762891,1738111846571,-2027.4,0.0001863,2]
[350762892,1738111846582,-556.3,0.0001863,2]
[350762893,1738111846592,-500.0,0.0001863,2]
[350762894,1738111846602,-912.02,0.0001863,2]
[350762895,1738111846611,-1309.93,0.0001863,2]
[350762896,1738111846621,-600.0,0.0001866,2]
[350762897,1738111846741,-384.5,0.00018707,7]
[350762898,1738111846753,-175.61772484,0.00018712,2]
[350762899,1738111846763,-249.0,0.00018739,2]
[350762900,1738111846773,-151.0,0.00018755,2]
[350762901,1738111846782,-157.07,0.00018766,2]
[350762902,1738111846791,-601.93,0.00018767,2]
[350762903,1738111846802,-1609.3,0.00018767,2]
[350762904,1738111846812,-500.0,0.00018767,2]
[350762905,1738111846821,-2206.11,0.00018767,2]
[350762906,1738111846831,-6619.11,0.00018767,2]
[350762907,1738111846841,-621.27,0.00018767,2]
[350762908,1738111846851,-593.38,0.00018767,2]
[350762909,1738111846860,-1104.98,0.00018767,2]
[350762910,1738111846870,-582.25,0.00018767,2]
[350762911,1738111846880,-781.13,0.00018767,2]
[350762912,1738111846890,-2027.4,0.00018767,2]
[350762913,1738111846900,-556.3,0.00018767,2]
[350762914,1738111846910,-501.00502227,0.00018767,2]
[350762915,1738111846920,-912.02,0.00018767,2]
[350762916,1738111846930,-1309.93,0.00018767,2]
[350762917,1738111846939,-500.0,0.00018783,2]
[350762918,1738111846949,-500.0,0.00018783,2]
[350762919,1738111846958,-405.58056635,0.000188,2]
[350762920,1738111846967,-466.6267,0.000188,2]
[350762921,1738111846977,-465.03304007,0.00018859,2]
[350762922,1738111846987,-3063.63,0.00018899,2]
[350762923,1738111846997,-3063.63,0.00018899,2]
[350762924,1738111847007,-3063.63,0.00018899,2]
[350762925,1738111847016,-3063.63,0.00018899,2]
[350762926,1738111847026,-3063.72,0.00018899,2]
[350762927,1738111847036,-8685.88671361,0.000189,2]
[350762928,1738111847048,-1159.24684128,0.000189,2]
[350762929,1738111847057,-601.93,0.00018904,2]
[350762930,1738111847068,-1609.3,0.00018904,2]
[350762931,1738111847078,-500.0,0.00018904,2]
[350762932,1738111847087,-2206.11,0.00018904,2]
[350762933,1738111847097,-6619.11,0.00018904,2]
[350762934,1738111847107,-621.27,0.00018904,2]
[350762935,1738111847116,-593.38,0.00018904,2]
[350762936,1738111847125,-1104.98,0.00018904,2]
[350762937,1738111847134,-582.25,0.00018904,2]
[350762938,1738111847144,-781.13,0.00018904,2]
[350762939,1738111847154,-2027.4,0.00018904,2]
[350762940,1738111847163,-556.3,0.00018904,2]
[350762941,1738111847172,-912.02,0.00018904,2]
[350762942,1738111847182,-1309.93,0.00018904,2]
[350762943,1738111847191,-5000.0,0.00018904,7]
[350762944,1738111847200,-5000.0,0.00018904,7]
[350762945,1738111847210,-5000.0,0.00018904,7]
[350762946,1738111847219,-2000.00908278,0.00018904,7]
[350762947,1738111847228,-870.65712405,0.00019,2]
[350762948,1738111847238,-1855.7194722,0.00019,4]
[350762950,1738112064765,229.067425,0.00013973,2]
[350762951,1738112802538,156.316152,0.00015101,2]
[350763005,1738113032670,-162.865848,0.0001547,2]
[350763006,1738113032680,-2042.54768658,0.00016338,2]
[350763007,1738113032794,-3598.8079926,0.00016338,2]
[350763008,1738113032804,-300.0,0.00016431,2]
[350763009,1738113032813,-500.0,0.00016431,2]
[350763010,1738113032822,-500.0,0.00016431,2]
[350763011,1738113032832,-500.0,0.00016431,2]
[350763012,1738113032841,-500.0,0.00016431,2]
[350763013,1738113032850,-500.0,0.00016431,2]
[350763014,1738113032860,-650.55210854,0.00016431,2]
[350763015,1738113032869,-500.0,0.00016431,2]
[350763016,1738113032878,-500.0,0.00016431,2]
[350763017,1738113032887,-500.0,0.00016431,2]
[350763018,1738113032898,-620.0,0.00016431,2]
[350763019,1738113032907,-616.12364826,0.00016437,2]
[350763020,1738113032917,-500.0,0.00016438,2]
[350763021,1738113032926,-500.0,0.00016438,2]
[350763022,1738113032936,-500.0,0.00016438,2]
[350763023,1738113032945,-500.0,0.00016438,2]
[350763024,1738113032955,-500.0,0.00016438,2]
[350763025,1738113032966,-500.0,0.00016438,2]
[350763026,1738113032975,-500.0,0.00016438,2]
[350763027,1738113032985,-500.0,0.00016438,2]
[350763028,1738113032994,-501.06283492,0.00016438,2]
[350763029,1738113033003,-500.0,0.00016438,2]
[350763030,1738113033012,-500.0,0.00016438,2]
[350763031,1738113033021,-639.04437251,0.00016438,2]
[350763032,1738113033031,-500.9208057,0.00016438,2]
[350763033,1738113033041,-500.0,0.00016438,2]
[350763034,1738113033051,-524.62980184,0.00016438,2]
[350763035,1738113033061,-500.0,0.00016438,2]
[350763036,1738113033071,-500.0,0.00016438,2]
[350763037,1738113033080,-214.79037241,0.00016438,2]
[350763038,1738113033090,-500.0,0.00016438,2]
[350763039,1738113033100,-500.0,0.00016438,2]
[350763040,1738113033110,-500.0,0.00016438,2]
[350763041,1738113033119,-567.85866553,0.00016438,2]
[350763042,1738113033129,-500.0,0.00016438,2]
[350763043,1738113033138,-500.0,0.00016438,2]
[350763044,1738113033150,-500.0,0.00016438,2]
[350763045,1738113033160,-500.0,0.00016438,2]
[350763046,1738113033170,-500.0,0.00016438,2]
[350763047,1738113033179,-500.0,0.00016438,2]
[350763048,1738113033189,-500.57520018,0.00016438,2]
[350763049,1738113033198,-500.0,0.00016438,2]
[350763050,1738113033378,-500.0,0.00016438,2]
[350763051,1738113033389,-500.0,0.00016438,2]
[350763052,1738113033400,-500.0,0.00016438,2]
[350763053,1738113033410,-500.0,0.00016438,2]
[350763054,1738113033420,-501.55396924,0.00016438,2]
[350763055,1738113033429,-500.0,0.00016438,2]
[350763056,1738113033439,-500.0,0.00016438,2]
[350763057,1738113033448,-500.0,0.00016438,2]
[350763058,1738113033458,-500.0,0.00016438,2]
[350763059,1738113033467,-500.0,0.00016438,2]
[350763060,1738113033477,-500.0,0.00016438,2]
[350763061,1738113033487,-500.66201974,0.00016438,2]
[350763062,1738113033497,-500.0,0.00016438,2]
[350763063,1738113033506,-500.0,0.00016438,2]
[350763064,1738113033515,-500.0,0.00016438,2]
[350763065,1738113033525,-500.0,0.00016438,2]
[350763066,1738113033534,-500.0,0.00016438,2]
[350763067,1738113033544,-500.0,0.00016438,2]
[350763068,1738113033554,-500.0,0.00016438,2]
[350763069,1738113033564,-500.0,0.00016438,2]
[350763070,1738113033574,-501.93528534,0.00016438,2]
[350763071,1738113033583,-500.0,0.00016438,2]
[350763072,1738113033593,-500.0,0.00016438,2]
[350763073,1738113033604,-500.0,0.00016438,2]
[350763074,1738113033614,-500.0,0.00016438,2]
[350763075,1738113033624,-500.0,0.00016438,2]
[350763076,1738113033635,-500.0,0.00016438,2]
[350763077,1738113033646,-500.0,0.00016438,2]
[350763078,1738113033656,-500.0,0.00016438,2]
[350763079,1738113033666,-500.0,0.00016438,2]
[350763080,1738113033676,-500.0,0.00016438,2]
[350763081,1738113033686,-301.40084929,0.00016438,2]
[350763082,1738113033696,-500.0,0.00016438,2]
[350763083,1738113033706,-500.0,0.00016438,2]
[350763084,1738113033718,-500.0,0.00016438,2]
[350763085,1738113033728,-500.0,0.00016438,2]
[350763086,1738113033739,-500.0,0.00016438,2]
[350763087,1738113033748,-500.0,0.00016438,2]
[350763088,1738113033759,-500.0,0.00016438,2]
[350763089,1738113033769,-503.86179914,0.00016438,2]
[350763090,1738113033779,-567.93082858,0.00016438,2]
[350763091,1738113033789,-500.0,0.00016438,2]
[350763092,1738113033800,-500.0,0.00016438,2]
[350763093,1738113033809,-500.0,0.00016438,2]
[350763094,1738113033819,-500.0,0.00016438,2]
[350763095,1738113033829,-613.45255532,0.00016438,2]
[350763096,1738113033838,-500.53221829,0.00016438,2]
[350763097,1738113033847,-500.0,0.00016438,2]
[350763098,1738113033857,-500.71996784,0.00016438,2]
[350763099,1738113033867,-500.0,0.00016438,2]
[350763100,1738113033877,-500.0,0.00016438,2]
[350763101,1738113033886,-500.0,0.00016438,2]
[350763102,1738113033897,-500.0,0.00016438,2]
[350763103,1738113033907,-500.0,0.00016438,2]
[350763104,1738113033916,-500.0,0.00016438,2]
[350763105,1738113033926,-500.0,0.00016438,2]
[350763106,1738113033935,-500.0,0.00016438,2]
[350763107,1738113033945,-500.0,0.00016438,2]
[350763108,1738113033954,-500.0,0.00016438,2]
[350763109,1738113033964,-500.0,0.00016438,2]
[350763110,1738113033973,-500.0,0.00016438,2]
[350763111,1738113033983,-500.0,0.00016438,2]
[350763112,1738113033994,-500.0,0.00016438,2]
[350763113,1738113034004,-500.0,0.00016438,2]
[350763114,1738113034015,-497.34164121,0.00016438,2]
[350763115,1738113034024,-500.0,0.00016438,2]
[350763116,1738113034033,-500.0,0.00016438,2]
[350763117,1738113034043,-500.0,0.00016438,2]
[350763118,1738113034052,-500.0,0.00016438,2]
[350763119,1738113034061,-500.0,0.00016438,2]
[350763120,1738113034070,-1000.0,0.00016438,2]
[350763121,1738113034080,-500.0,0.00016438,2]
[350763122,1738113034090,-500.0,0.00016438,2]
[350763123,1738113034099,-500.0,0.00016438,2]
[350763124,1738113034109,-215.38848512,0.00016438,2]
[350763125,1738113034119,-624.64,0.00016438,2]
[350763126,1738113034128,-500.0,0.00016438,2]
[350763127,1738113034137,-500.0,0.00016438,2]
[350763128,1738113034147,-500.0,0.00016438,2]
[350763129,1738113034157,-500.0,0.00016438,2]
[350763130,1738113034167,-505.02949985,0.00016438,2]
[350763131,1738113034176,-500.0,0.00016438,2]
[350763132,1738113034186,-500.0,0.00016438,2]
[350763133,1738113034195,-500.0,0.00016438,2]
[350763134,1738113034206,-500.0,0.00016438,2]
[350763135,1738113034216,-500.0,0.00016438,2]
[350763136,1738113034227,-500.0,0.00016438,2]
[350763137,1738113034237,-503.98010126,0.00016438,2]
[350763138,1738113034247,-500.0,0.00016438,2]
[350763139,1738113034256,-211.22157896,0.00016438,2]
[350763140,1738113034266,-500.0,0.00016438,2]
[350763141,1738113034276,-500.0,0.00016438,2]
[350763142,1738113034286,-500.0,0.00016438,2]
[350763143,1738113034296,-500.0,0.00016438,2]
[350763144,1738113034306,-500.0,0.00016438,2]
[350763145,1738113034316,-500.0,0.00016438,2]
[350763146,1738113034326,-500.0,0.00016438,2]
[350763147,1738113034335,-500.0,0.00016438,2]
[350763148,1738113034345,-500.0,0.00016438,2]
[350763149,1738113034355,-500.0,0.00016438,2]
[350763150,1738113034365,-500.0,0.00016438,2]
[350763151,1738113034375,-500.5333633,0.00016438,2]
[350763152,1738113034385,-500.0,0.00016438,2]
[350763153,1738113034395,-538.36932514,0.00016438,2]
[350763154,1738113034404,-500.0,0.00016438,2]
[350763155,1738113034414,-500.0,0.00016438,2]
[350763156,1738113034423,-500.0,0.00016438,2]
[350763157,1738113034433,-500.0,0.00016438,2]
[350763158,1738113034443,-500.0,0.00016438,2]
[350763159,1738113034452,-500.0,0.00016438,2]
[350763160,1738113034463,-500.0,0.00016438,2]
[350763161,1738113034472,-500.0,0.00016438,2]
[350763162,1738113034482,-500.0,0.00016438,2]
[350763163,1738113034492,-500.0,0.00016438,2]
[350763164,1738113034502,-500.0,0.00016438,2]
[350763165,1738113034512,-250.46242938,0.00016438,2]
[350763166,1738113034522,-500.0,0.00016438,2]
[350763167,1738113034532,-422.75721941,0.00016438,2]
[350763168,1738113034542,-467.94428311,0.00016438,2]
[350763169,1738113034551,-503.22932378,0.00016438,2]
[350763170,1738113034560,-500.0,0.00016438,2]
[350763171,1738113034569,-500.0,0.00016438,2]
[350763172,1738113034579,-500.0,0.00016438,2]
[350763173,1738113034589,-500.0,0.00016438,2]
[350763174,1738113034599,-500.0,0.00016438,2]
[350763175,1738113034609,-500.0,0.00016438,2]
[350763176,1738113034618,-500.0,0.00016438,2]
[350763177,1738113034628,-500.0,0.00016438,2]
[350763178,1738113034638,-555.42,0.00016438,2]